[Event "Early-Titled-Tuesday-Blitz-September-05-2023"]
[Site "Chess.com"]
[Date "2023.09.05"]
[Round "8"]
[White "ferrufino64"]
[Black "IM_Tissir"]
[Result "0-1"]
[WhiteElo "2160"]
[BlackElo "2459"]
[TimeControl "180+1"]
[EndTime "9:26:41 PDT"]
[Termination "IM_Tissir won on time"]

1. e4 {[%clk 0:03:00.9]} 1... c5 {[%clk 0:02:57.2]} 2. Nf3 {[%clk 0:02:59.5]}
2... e6 {[%clk 0:02:57]} 3. d4 {[%clk 0:02:59.6]} 3... cxd4 {[%clk 0:02:57.9]}
4. Nxd4 {[%clk 0:02:59.9]} 4... Nf6 {[%clk 0:02:57.5]} 5. Nc3 {[%clk 0:02:58.8]}
5... d6 {[%clk 0:02:58]} 6. Be3 {[%clk 0:02:56.7]} 6... a6 {[%clk 0:02:58]} 7.
f3 {[%clk 0:02:57.2]} 7... b5 {[%clk 0:02:58.4]} 8. g4 {[%clk 0:02:55.9]} 8...
Nfd7 {[%clk 0:02:57.2]} 9. h4 {[%clk 0:02:52.2]} 9... Nb6 {[%clk 0:02:55.1]} 10.
g5 {[%clk 0:02:46.2]} 10... Bb7 {[%clk 0:02:52.3]} 11. h5 {[%clk 0:02:40.9]}
11... N8d7 {[%clk 0:02:27]} 12. Rg1 {[%clk 0:02:32.1]} 12... g6 {[%clk
0:02:24.5]} 13. a3 {[%clk 0:01:56.8]} 13... Rc8 {[%clk 0:02:10.8]} 14. Qd2
{[%clk 0:01:51.1]} 14... Be7 {[%clk 0:01:54.6]} 15. O-O-O {[%clk 0:01:45.1]}
15... Ne5 {[%clk 0:01:34.9]} 16. f4 {[%clk 0:01:09]} 16... Nec4 {[%clk
0:01:34.1]} 17. Bxc4 {[%clk 0:01:09.2]} 17... Nxc4 {[%clk 0:01:34.9]} 18. Qd3
{[%clk 0:01:05.7]} 18... Qc7 {[%clk 0:01:21.4]} 19. Rh1 {[%clk 0:00:57.8]} 19...
Rf8 {[%clk 0:00:52.6]} 20. hxg6 {[%clk 0:00:56.2]} 20... hxg6 {[%clk 0:00:52.3]}
21. Rhf1 {[%clk 0:00:28.3]} 21... e5 {[%clk 0:00:40.8]} 22. Nde2 {[%clk
0:00:22.3]} 22... Nxe3 {[%clk 0:00:23.1]} 23. Qxe3 {[%clk 0:00:22.7]} 23... exf4
{[%clk 0:00:23.4]} 24. Qxf4 {[%clk 0:00:13.3]} 24... Qc5 {[%clk 0:00:23.2]} 25.
Kb1 {[%clk 0:00:10.4]} 25... Bxg5 {[%clk 0:00:19.8]} 26. Qg4 {[%clk 0:00:08.2]}
26... Be7 {[%clk 0:00:19]} 27. Nd4 {[%clk 0:00:06.3]} 27... Qe5 {[%clk 0:00:16]}
28. Nb3 {[%clk 0:00:04]} 28... Rxc3 {[%clk 0:00:15.4]} 29. bxc3 {[%clk
0:00:04.1]} 29... Qxc3 {[%clk 0:00:16.1]} 30. Qe2 {[%clk 0:00:02.9]} 30... d5
{[%clk 0:00:13.8]} 31. exd5 {[%clk 0:00:02.3]} 31... Kd8 {[%clk 0:00:12.9]} 32.
d6 {[%clk 0:00:02.9]} 32... Bf6 {[%clk 0:00:13.4]} 33. Rxf6 {[%clk 0:00:02.4]}
33... Qxf6 {[%clk 0:00:13.3]} 34. Qe3 {[%clk 0:00:02.9]} 34... Qf3 {[%clk
0:00:10.5]} 35. Qb6+ {[%clk 0:00:02.8]} 35... Kd7 {[%clk 0:00:11]} 36. Qc7+
{[%clk 0:00:02.5]} 36... Ke6 {[%clk 0:00:11.3]} 0-1

[Event "Early-Titled-Tuesday-Blitz-September-05-2023"]
[Site "Chess.com"]
[Date "2023.09.05"]
[Round "8"]
[White "Kapitan_Bayan"]
[Black "AdrianaPalao"]
[Result "0-1"]
[WhiteElo "2190"]
[BlackElo "2073"]
[TimeControl "180+1"]
[EndTime "9:26:42 PDT"]
[Termination "AdrianaPalao won on time"]

1. e4 {[%clk 0:03:00.9]} 1... e5 {[%clk 0:03:00.2]} 2. Nf3 {[%clk 0:02:57.5]}
2... Nc6 {[%clk 0:03:00.8]} 3. Bc4 {[%clk 0:02:57.2]} 3... Nf6 {[%clk
0:02:59.8]} 4. d3 {[%clk 0:02:56.1]} 4... Be7 {[%clk 0:02:59.4]} 5. O-O {[%clk
0:02:55.5]} 5... O-O {[%clk 0:03:00.3]} 6. Re1 {[%clk 0:02:54.3]} 6... d6 {[%clk
0:03:00.8]} 7. a4 {[%clk 0:02:53.9]} 7... h6 {[%clk 0:02:51.8]} 8. h3 {[%clk
0:02:49.7]} 8... Be6 {[%clk 0:02:49.5]} 9. Nc3 {[%clk 0:02:49.1]} 9... d5 {[%clk
0:02:40.9]} 10. exd5 {[%clk 0:02:47.6]} 10... Nxd5 {[%clk 0:02:41.8]} 11. Nxe5
{[%clk 0:02:26.3]} 11... Nxc3 {[%clk 0:02:15.1]} 12. bxc3 {[%clk 0:02:24.6]}
12... Bxc4 {[%clk 0:01:54.8]} 13. Nxc4 {[%clk 0:02:19.7]} 13... Bf6 {[%clk
0:01:54.2]} 14. Bb2 {[%clk 0:02:14.8]} 14... Qd5 {[%clk 0:01:51.4]} 15. Ne3
{[%clk 0:02:10.3]} 15... Qg5 {[%clk 0:01:50.5]} 16. Qg4 {[%clk 0:02:07.8]} 16...
Qa5 {[%clk 0:01:43.5]} 17. Nc4 {[%clk 0:01:35.7]} 17... Qd5 {[%clk 0:01:30.6]}
18. Re4 {[%clk 0:01:16]} 18... Be7 {[%clk 0:01:19.4]} 19. Ne3 {[%clk 0:01:04.6]}
19... Qd8 {[%clk 0:01:00]} 20. c4 {[%clk 0:01:00.2]} 20... Bf6 {[%clk
0:00:58.3]} 21. Bxf6 {[%clk 0:00:52.1]} 21... Qxf6 {[%clk 0:00:59.2]} 22. Re1
{[%clk 0:00:50]} 22... Qc3 {[%clk 0:00:56.5]} 23. Nf5 {[%clk 0:00:37.8]} 23...
Kh7 {[%clk 0:00:53.8]} 24. d4 {[%clk 0:00:17.9]} 24... g6 {[%clk 0:00:51.8]} 25.
Ne3 {[%clk 0:00:04.9]} 25... f5 {[%clk 0:00:46.8]} 26. Nxf5 {[%clk 0:00:04.8]}
26... Rf7 {[%clk 0:00:29.7]} 27. Nh4 {[%clk 0:00:03]} 27... Rg8 {[%clk
0:00:26.9]} 28. Nf3 {[%clk 0:00:03]} 28... h5 {[%clk 0:00:24.7]} 29. Qe6 {[%clk
0:00:03]} 29... Re7 {[%clk 0:00:23.1]} 30. Qd5 {[%clk 0:00:03.4]} 30... Rxe4
{[%clk 0:00:15.6]} 31. Qxe4 {[%clk 0:00:04.3]} 31... Rg7 {[%clk 0:00:13.7]} 32.
Ng5+ {[%clk 0:00:04.3]} 32... Kh6 {[%clk 0:00:08.6]} 33. Qf4 {[%clk 0:00:01.7]}
33... Qxe1+ {[%clk 0:00:08.6]} 34. Kh2 {[%clk 0:00:01.8]} 34... Qe8 {[%clk
0:00:04.3]} 0-1

[Event "Early-Titled-Tuesday-Blitz-September-05-2023"]
[Site "Chess.com"]
[Date "2023.09.05"]
[Round "8"]
[White "Truequitos"]
[Black "valemava"]
[Result "1-0"]
[WhiteElo "2427"]
[BlackElo "2282"]
[TimeControl "180+1"]
[EndTime "9:26:43 PDT"]
[Termination "Truequitos won by checkmate"]

1. e4 {[%clk 0:03:00.9]} 1... c5 {[%clk 0:02:58.9]} 2. Nc3 {[%clk 0:03:01.2]}
2... Qa5 {[%clk 0:02:58.2]} 3. g3 {[%clk 0:02:57.7]} 3... a6 {[%clk 0:02:58.4]}
4. Bg2 {[%clk 0:02:58.2]} 4... b5 {[%clk 0:02:58.7]} 5. d3 {[%clk 0:02:58.5]}
5... Bb7 {[%clk 0:02:58.8]} 6. Ne2 {[%clk 0:02:57.7]} 6... g6 {[%clk 0:02:58.5]}
7. O-O {[%clk 0:02:58.1]} 7... Bg7 {[%clk 0:02:58.7]} 8. Be3 {[%clk 0:02:58.3]}
8... d6 {[%clk 0:02:58.3]} 9. Qd2 {[%clk 0:02:58.4]} 9... b4 {[%clk 0:02:57.6]}
10. Nd1 {[%clk 0:02:56]} 10... Qc7 {[%clk 0:02:55.6]} 11. h3 {[%clk 0:02:54.6]}
11... Nf6 {[%clk 0:02:54.5]} 12. f4 {[%clk 0:02:54.8]} 12... O-O {[%clk
0:02:54.2]} 13. f5 {[%clk 0:02:55.2]} 13... Nbd7 {[%clk 0:02:53.2]} 14. Bh6
{[%clk 0:02:55.3]} 14... d5 {[%clk 0:02:47.9]} 15. Bxg7 {[%clk 0:02:50.6]} 15...
Kxg7 {[%clk 0:02:47.3]} 16. Qe3 {[%clk 0:02:44.7]} 16... dxe4 {[%clk 0:02:45.2]}
17. dxe4 {[%clk 0:02:45.6]} 17... Ne5 {[%clk 0:02:42.4]} 18. Nf2 {[%clk
0:02:40.3]} 18... Rfd8 {[%clk 0:02:21.8]} 19. Nf4 {[%clk 0:02:27.7]} 19... Nc4
{[%clk 0:02:19.1]} 20. Qc1 {[%clk 0:02:27]} 20... Nd2 {[%clk 0:01:51.9]} 21. Re1
{[%clk 0:02:25.5]} 21... c4 {[%clk 0:01:50.3]} 22. Re2 {[%clk 0:02:06.8]} 22...
c3 {[%clk 0:01:49.2]} 23. bxc3 {[%clk 0:02:07]} 23... bxc3 {[%clk 0:01:50.1]}
24. e5 {[%clk 0:01:59.7]} 24... Nd5 {[%clk 0:01:46.5]} 25. Rxd2 {[%clk
0:01:15.4]} 25... cxd2 {[%clk 0:01:43.5]} 26. Qxd2 {[%clk 0:01:16.3]} 26... Qxe5
{[%clk 0:01:20.3]} 27. Re1 {[%clk 0:01:15.4]} 27... Qxf5 {[%clk 0:01:19.4]} 28.
Nxd5 {[%clk 0:00:40.8]} 28... Bxd5 {[%clk 0:01:16.1]} 29. Qd4+ {[%clk
0:00:31.5]} 29... f6 {[%clk 0:01:15.5]} 30. Rxe7+ {[%clk 0:00:30.3]} 30... Kh8
{[%clk 0:01:08.3]} 31. g4 {[%clk 0:00:18.2]} 31... Qg5 {[%clk 0:01:05.8]} 32. h4
{[%clk 0:00:14.8]} 32... Bxg2 {[%clk 0:00:55.9]} 33. Qxd8+ {[%clk 0:00:11.2]}
33... Rxd8 {[%clk 0:00:56.8]} 34. hxg5 {[%clk 0:00:11.3]} 34... Bd5 {[%clk
0:00:51.4]} 35. gxf6 {[%clk 0:00:10]} 35... Bxa2 {[%clk 0:00:50.9]} 36. Nd3
{[%clk 0:00:08.2]} 36... g5 {[%clk 0:00:48.7]} 37. Ne5 {[%clk 0:00:07.5]} 37...
Rf8 {[%clk 0:00:47.1]} 38. Nd7 {[%clk 0:00:06.9]} 38... Rd8 {[%clk 0:00:45.4]}
39. f7 {[%clk 0:00:05.4]} 39... Bxf7 {[%clk 0:00:34.8]} 40. Rxf7 {[%clk
0:00:06.3]} 40... Rc8 {[%clk 0:00:35.1]} 41. Nf6 {[%clk 0:00:03.9]} 41... Rc7
{[%clk 0:00:17.3]} 42. Rxc7 {[%clk 0:00:03.7]} 42... h5 {[%clk 0:00:16.7]} 43.
Rh7# {[%clk 0:00:03.9]} 1-0

[Event "Early-Titled-Tuesday-Blitz-September-05-2023"]
[Site "Chess.com"]
[Date "2023.09.05"]
[Round "8"]
[White "VitaliyBernadskiy"]
[Black "only_strong_moves"]
[Result "1-0"]
[WhiteElo "2829"]
[BlackElo "2549"]
[TimeControl "180+1"]
[EndTime "9:26:44 PDT"]
[Termination "VitaliyBernadskiy won by resignation"]

1. e4 {[%clk 0:02:57]} 1... e6 {[%clk 0:02:59.7]} 2. d4 {[%clk 0:02:53.1]} 2...
d5 {[%clk 0:02:59.6]} 3. Bb5+ {[%clk 0:02:53.2]} 3... c6 {[%clk 0:02:55.3]} 4.
Bd3 {[%clk 0:02:52.3]} 4... c5 {[%clk 0:02:55.7]} 5. exd5 {[%clk 0:02:51.6]}
5... exd5 {[%clk 0:02:55.9]} 6. Nf3 {[%clk 0:02:50.9]} 6... Nf6 {[%clk
0:02:55.6]} 7. O-O {[%clk 0:02:50.5]} 7... c4 {[%clk 0:02:56.1]} 8. Re1+ {[%clk
0:02:50.8]} 8... Be7 {[%clk 0:02:56.5]} 9. Bf1 {[%clk 0:02:50.8]} 9... O-O
{[%clk 0:02:56.7]} 10. b3 {[%clk 0:02:51.7]} 10... cxb3 {[%clk 0:02:56.2]} 11.
axb3 {[%clk 0:02:52.6]} 11... Nc6 {[%clk 0:02:56.5]} 12. Ne5 {[%clk 0:02:48.6]}
12... Ne4 {[%clk 0:02:56.5]} 13. c4 {[%clk 0:02:44.1]} 13... Bf6 {[%clk
0:02:34.1]} 14. Bb2 {[%clk 0:02:35.7]} 14... Bf5 {[%clk 0:02:26.2]} 15. Qf3
{[%clk 0:02:27.6]} 15... Ne7 {[%clk 0:01:58]} 16. Ba3 {[%clk 0:02:12.8]} 16...
Bxe5 {[%clk 0:01:34.3]} 17. dxe5 {[%clk 0:02:04.7]} 17... Ng5 {[%clk 0:01:26.5]}
18. Qg3 {[%clk 0:01:55.4]} 18... Ne4 {[%clk 0:01:20.2]} 19. Qf4 {[%clk
0:01:54.8]} 19... Bg6 {[%clk 0:00:20.1]} 20. Bxe7 {[%clk 0:01:47.5]} 20... Qxe7
{[%clk 0:00:21]} 21. cxd5 {[%clk 0:01:47.9]} 21... Rfe8 {[%clk 0:00:21.2]} 22.
Rxe4 {[%clk 0:01:42.7]} 22... Bxe4 {[%clk 0:00:22.1]} 23. Qxe4 {[%clk
0:01:42.9]} 23... Qxe5 {[%clk 0:00:22.8]} 24. Qxe5 {[%clk 0:01:43.6]} 24... Rxe5
{[%clk 0:00:23.3]} 25. Nc3 {[%clk 0:01:42.9]} 25... a6 {[%clk 0:00:20.3]} 26.
Rd1 {[%clk 0:01:32]} 26... Rd8 {[%clk 0:00:17.6]} 27. g3 {[%clk 0:01:23.2]}
27... b5 {[%clk 0:00:17.3]} 28. Bg2 {[%clk 0:01:21.8]} 28... Kf8 {[%clk
0:00:15.4]} 29. Ra1 {[%clk 0:01:18]} 29... Rc8 {[%clk 0:00:11.8]} 30. f4 {[%clk
0:00:57.9]} 30... Re3 {[%clk 0:00:07.4]} 31. Ne4 {[%clk 0:00:58.4]} 31... Rxb3
{[%clk 0:00:04.3]} 32. d6 {[%clk 0:00:58.3]} 32... Rd3 {[%clk 0:00:02.5]} 33.
Bh3 {[%clk 0:00:53.2]} 33... Rd8 {[%clk 0:00:02.2]} 34. d7 {[%clk 0:00:52.3]}
34... g6 {[%clk 0:00:02.5]} 35. Nc5 {[%clk 0:00:46.8]} 35... Rd5 {[%clk
0:00:02.2]} 36. Nxa6 {[%clk 0:00:46.7]} 36... b4 {[%clk 0:00:01.4]} 37. Nxb4
{[%clk 0:00:46]} 37... Rd6 {[%clk 0:00:02.2]} 38. Na6 {[%clk 0:00:32.5]} 38...
f5 {[%clk 0:00:02.4]} 39. Nc5 {[%clk 0:00:32.3]} 39... Kf7 {[%clk 0:00:02.5]}
40. Bf1 {[%clk 0:00:30.8]} 40... Rc6 {[%clk 0:00:02]} 41. Ra5 {[%clk 0:00:29.3]}
41... Ke7 {[%clk 0:00:01.6]} 42. Bg2 {[%clk 0:00:26.7]} 42... Rc7 {[%clk
0:00:02.2]} 43. h4 {[%clk 0:00:26.3]} 43... Kd6 {[%clk 0:00:02.7]} 44. Nb7+
{[%clk 0:00:26.6]} 44... Rxb7 {[%clk 0:00:02.8]} 45. Bxb7 {[%clk 0:00:27.4]}
45... Rxd7 {[%clk 0:00:03.5]} 46. Rd5+ {[%clk 0:00:27.6]} 46... Kc7 {[%clk
0:00:04.2]} 47. Rxd7+ {[%clk 0:00:28.5]} 47... Kxd7 {[%clk 0:00:05.1]} 48. Bd5
{[%clk 0:00:28.8]} 48... Kd6 {[%clk 0:00:05.3]} 49. Bg8 {[%clk 0:00:28.8]} 1-0

[Event "Early-Titled-Tuesday-Blitz-September-05-2023"]
[Site "Chess.com"]
[Date "2023.09.05"]
[Round "8"]
[White "TregubovP"]
[Black "baki83"]
[Result "1-0"]
[WhiteElo "2653"]
[BlackElo "2803"]
[TimeControl "180+1"]
[EndTime "9:26:44 PDT"]
[Termination "TregubovP won on time"]

1. e4 {[%clk 0:03:00.9]} 1... c5 {[%clk 0:02:59.9]} 2. Nf3 {[%clk 0:03:00.6]}
2... Nc6 {[%clk 0:02:59.9]} 3. Bb5 {[%clk 0:03:00.5]} 3... e6 {[%clk 0:03:00]}
4. c3 {[%clk 0:02:58.4]} 4... Nge7 {[%clk 0:02:58.6]} 5. O-O {[%clk 0:02:58.3]}
5... a6 {[%clk 0:02:58.5]} 6. Ba4 {[%clk 0:02:58]} 6... b5 {[%clk 0:02:57.4]} 7.
Bc2 {[%clk 0:02:58.3]} 7... c4 {[%clk 0:02:57.5]} 8. a4 {[%clk 0:02:50.6]} 8...
Bb7 {[%clk 0:02:57.4]} 9. d4 {[%clk 0:02:49.5]} 9... cxd3 {[%clk 0:02:57.2]} 10.
Bxd3 {[%clk 0:02:49.9]} 10... b4 {[%clk 0:02:57.2]} 11. Nbd2 {[%clk 0:02:45.4]}
11... Ng6 {[%clk 0:02:54.9]} 12. Nc4 {[%clk 0:02:44.2]} 12... Qc7 {[%clk
0:02:46.1]} 13. a5 {[%clk 0:02:30.1]} 13... Be7 {[%clk 0:02:43.8]} 14. Re1
{[%clk 0:02:25.6]} 14... O-O {[%clk 0:02:42.7]} 15. e5 {[%clk 0:02:23.7]} 15...
bxc3 {[%clk 0:02:37.7]} 16. bxc3 {[%clk 0:02:23.4]} 16... f5 {[%clk 0:02:30.6]}
17. Ba3 {[%clk 0:02:15.4]} 17... Rad8 {[%clk 0:02:12.7]} 18. Bf1 {[%clk
0:01:59]} 18... Bxa3 {[%clk 0:01:59.1]} 19. Rxa3 {[%clk 0:01:58.4]} 19... Nce7
{[%clk 0:01:56.9]} 20. Qd6 {[%clk 0:01:52.1]} 20... Rc8 {[%clk 0:01:41.7]} 21.
Nb6 {[%clk 0:01:39.4]} 21... Bxf3 {[%clk 0:01:34.1]} 22. Nxc8 {[%clk 0:01:37.5]}
22... Qxc8 {[%clk 0:01:31.9]} 23. gxf3 {[%clk 0:01:32.9]} 23... Nc6 {[%clk
0:01:22]} 24. Ra4 {[%clk 0:01:16]} 24... Qd8 {[%clk 0:01:05.9]} 25. Bxa6 {[%clk
0:01:10]} 25... Ncxe5 {[%clk 0:00:36.3]} 26. Rxe5 {[%clk 0:00:52.8]} 26... Qg5+
{[%clk 0:00:35.8]} 27. Kf1 {[%clk 0:00:52.2]} 27... Qc1+ {[%clk 0:00:35.9]} 28.
Re1 {[%clk 0:00:51.8]} 28... Qxc3 {[%clk 0:00:27.6]} 29. Qxd7 {[%clk 0:00:46.4]}
29... Qxf3 {[%clk 0:00:23.4]} 30. Bb7 {[%clk 0:00:40.7]} 30... Qh5 {[%clk
0:00:15.5]} 31. Qxe6+ {[%clk 0:00:36.8]} 31... Kh8 {[%clk 0:00:15.7]} 32. Qd6
{[%clk 0:00:30]} 32... f4 {[%clk 0:00:11.9]} 33. Qd5 {[%clk 0:00:17.1]} 33...
Qh3+ {[%clk 0:00:03.1]} 34. Qg2 {[%clk 0:00:11.2]} 34... Qh5 {[%clk 0:00:02.3]}
35. Bc6 {[%clk 0:00:06.9]} 35... f3 {[%clk 0:00:02.4]} 36. Qg3 {[%clk
0:00:06.1]} 36... Qc5 {[%clk 0:00:01.8]} 37. Qd6 {[%clk 0:00:02.7]} 1-0

[Event "Early-Titled-Tuesday-Blitz-September-05-2023"]
[Site "Chess.com"]
[Date "2023.09.05"]
[Round "8"]
[White "moro182"]
[Black "Keeper0416"]
[Result "1-0"]
[WhiteElo "2853"]
[BlackElo "2611"]
[TimeControl "180+1"]
[EndTime "9:26:46 PDT"]
[Termination "moro182 won by checkmate"]

1. d4 {[%clk 0:03:00.9]} 1... Nf6 {[%clk 0:02:59.5]} 2. Bf4 {[%clk 0:03:00.3]}
2... g6 {[%clk 0:02:58.7]} 3. Nc3 {[%clk 0:02:59.2]} 3... d5 {[%clk 0:02:57.5]}
4. Nb5 {[%clk 0:02:58.2]} 4... Na6 {[%clk 0:02:54.1]} 5. e3 {[%clk 0:02:58.4]}
5... Bg7 {[%clk 0:02:51.9]} 6. h3 {[%clk 0:02:58.6]} 6... O-O {[%clk 0:02:44.1]}
7. Nf3 {[%clk 0:02:58.7]} 7... c6 {[%clk 0:02:43.4]} 8. Nc3 {[%clk 0:02:58.1]}
8... Nc7 {[%clk 0:02:42.1]} 9. Be2 {[%clk 0:02:58.5]} 9... Nh5 {[%clk
0:02:32.5]} 10. Be5 {[%clk 0:02:57.3]} 10... f6 {[%clk 0:02:25.3]} 11. Bxc7
{[%clk 0:02:55.7]} 11... Qxc7 {[%clk 0:02:15.8]} 12. g4 {[%clk 0:02:55.2]} 12...
Ng3 {[%clk 0:02:16.5]} 13. fxg3 {[%clk 0:02:54.5]} 13... Qxg3+ {[%clk
0:02:17.4]} 14. Kd2 {[%clk 0:02:54.9]} 14... f5 {[%clk 0:02:18.3]} 15. Qg1
{[%clk 0:02:45.3]} 15... Qd6 {[%clk 0:02:18]} 16. gxf5 {[%clk 0:02:42.2]} 16...
Bxf5 {[%clk 0:02:18.9]} 17. Rf1 {[%clk 0:02:41.5]} 17... c5 {[%clk 0:02:18]} 18.
Bd3 {[%clk 0:02:37.2]} 18... Bxd3 {[%clk 0:02:12.8]} 19. cxd3 {[%clk 0:02:37.1]}
19... cxd4 {[%clk 0:02:11.1]} 20. Nxd4 {[%clk 0:02:34.7]} 20... e5 {[%clk
0:02:04.9]} 21. Nc2 {[%clk 0:02:29.9]} 21... d4 {[%clk 0:02:01.7]} 22. exd4
{[%clk 0:02:11.8]} 22... exd4 {[%clk 0:02:02.6]} 23. Ne4 {[%clk 0:02:11.5]}
23... Bh6+ {[%clk 0:01:45.5]} 24. Kd1 {[%clk 0:02:05.9]} 24... Rxf1+ {[%clk
0:01:16.1]} 25. Qxf1 {[%clk 0:02:06.8]} 25... Qa6 {[%clk 0:01:16.5]} 26. a3
{[%clk 0:01:44.7]} 26... Rf8 {[%clk 0:00:54.2]} 27. Qe2 {[%clk 0:01:42.7]} 27...
Qb5 {[%clk 0:00:51.5]} 28. Rf1 {[%clk 0:01:13.6]} 28... Rxf1+ {[%clk 0:00:37]}
29. Qxf1 {[%clk 0:01:12.4]} 29... Qxb2 {[%clk 0:00:37.9]} 30. Nd2 {[%clk
0:01:10.8]} 30... Qc3 {[%clk 0:00:33.1]} 31. Qe2 {[%clk 0:01:02.3]} 31... Be3
{[%clk 0:00:22.8]} 32. Nc4 {[%clk 0:00:53]} 32... Bg5 {[%clk 0:00:15.4]} 33.
Qe6+ {[%clk 0:00:50.3]} 33... Kg7 {[%clk 0:00:15.5]} 34. Qd7+ {[%clk 0:00:50.2]}
34... Kh6 {[%clk 0:00:15.5]} 35. Qxd4 {[%clk 0:00:44.4]} 35... Qb3 {[%clk
0:00:16.1]} 36. Nd2 {[%clk 0:00:36.8]} 36... Qb5 {[%clk 0:00:13.3]} 37. h4
{[%clk 0:00:32.8]} 37... Bxd2 {[%clk 0:00:04.3]} 38. Kxd2 {[%clk 0:00:32.6]}
38... Kh5 {[%clk 0:00:03.9]} 39. Ne3 {[%clk 0:00:20.2]} 39... Qa5+ {[%clk
0:00:04.1]} 40. Ke2 {[%clk 0:00:20.1]} 40... Qxa3 {[%clk 0:00:02.3]} 41. Qg4+
{[%clk 0:00:15.3]} 41... Kh6 {[%clk 0:00:02.9]} 42. Nf5+ {[%clk 0:00:16]} 42...
gxf5 {[%clk 0:00:03.7]} 43. Qg5# {[%clk 0:00:16.9]} 1-0

[Event "Early-Titled-Tuesday-Blitz-September-05-2023"]
[Site "Chess.com"]
[Date "2023.09.05"]
[Round "8"]
[White "Apocalyps999"]
[Black "jcmesafischer"]
[Result "0-1"]
[WhiteElo "2299"]
[BlackElo "2461"]
[TimeControl "180+1"]
[EndTime "9:26:46 PDT"]
[Termination "jcmesafischer won by checkmate"]

1. e4 {[%clk 0:03:00.9]} 1... c5 {[%clk 0:02:44.8]} 2. c3 {[%clk 0:03:00.7]}
2... d6 {[%clk 0:02:23]} 3. d4 {[%clk 0:02:51.7]} 3... Nf6 {[%clk 0:02:16.7]} 4.
Bd3 {[%clk 0:02:04.7]} 4... g6 {[%clk 0:01:27.6]} 5. Nf3 {[%clk 0:01:44.7]} 5...
Bg7 {[%clk 0:01:21.6]} 6. O-O {[%clk 0:01:42.9]} 6... O-O {[%clk 0:01:21.6]} 7.
h3 {[%clk 0:01:43.8]} 7... Nc6 {[%clk 0:01:21.4]} 8. d5 {[%clk 0:01:36.9]} 8...
Na5 {[%clk 0:01:13.2]} 9. Nbd2 {[%clk 0:01:21.1]} 9... c4 {[%clk 0:00:59.1]} 10.
Nxc4 {[%clk 0:01:16.1]} 10... Nxc4 {[%clk 0:00:58.5]} 11. Bxc4 {[%clk 0:01:17]}
11... Nxe4 {[%clk 0:00:58.9]} 12. Re1 {[%clk 0:01:14.4]} 12... Nf6 {[%clk
0:00:55]} 13. Be3 {[%clk 0:01:05.9]} 13... b5 {[%clk 0:00:52.7]} 14. Bxb5 {[%clk
0:00:59.8]} 14... Rb8 {[%clk 0:00:52.4]} 15. c4 {[%clk 0:00:56.4]} 15... a6
{[%clk 0:00:47.3]} 16. Ba4 {[%clk 0:00:55.7]} 16... Rxb2 {[%clk 0:00:46.2]} 17.
Bb3 {[%clk 0:00:52]} 17... e6 {[%clk 0:00:15.7]} 18. Bd4 {[%clk 0:00:48.6]}
18... Ne8 {[%clk 0:00:10.2]} 19. Bxb2 {[%clk 0:00:45.5]} 19... Bxb2 {[%clk
0:00:08.8]} 20. Rb1 {[%clk 0:00:46]} 20... Bc3 {[%clk 0:00:09.1]} 21. Re3 {[%clk
0:00:36.8]} 21... Bb4 {[%clk 0:00:08.7]} 22. dxe6 {[%clk 0:00:34.2]} 22... fxe6
{[%clk 0:00:08.4]} 23. Nd4 {[%clk 0:00:30.1]} 23... Bc5 {[%clk 0:00:07.6]} 24.
Rf3 {[%clk 0:00:25.5]} 24... Nf6 {[%clk 0:00:07.2]} 25. Qd3 {[%clk 0:00:20.1]}
25... e5 {[%clk 0:00:06.9]} 26. Rxf6 {[%clk 0:00:11.9]} 26... Qxf6 {[%clk
0:00:05.7]} 27. Nf3 {[%clk 0:00:12.8]} 27... Bf5 {[%clk 0:00:05.2]} 28. Qd5+
{[%clk 0:00:13.2]} 28... Be6 {[%clk 0:00:05.8]} 29. Qd2 {[%clk 0:00:12.3]} 29...
e4 {[%clk 0:00:05.3]} 30. Ng5 {[%clk 0:00:10.4]} 30... Bxf2+ {[%clk 0:00:04.8]}
31. Kh1 {[%clk 0:00:10.8]} 31... e3 {[%clk 0:00:05.4]} 32. Ne4 {[%clk
0:00:04.4]} 32... exd2 {[%clk 0:00:04.6]} 33. Nxf6+ {[%clk 0:00:05.3]} 33...
Rxf6 {[%clk 0:00:04.4]} 34. Rd1 {[%clk 0:00:06.2]} 34... Bg3 {[%clk 0:00:04.4]}
35. c5 {[%clk 0:00:07.1]} 35... Bxb3 {[%clk 0:00:03.5]} 36. axb3 {[%clk
0:00:07.5]} 36... dxc5 {[%clk 0:00:04]} 37. Rg1 {[%clk 0:00:07.3]} 37... Re6
{[%clk 0:00:04.5]} 38. Rd1 {[%clk 0:00:07.8]} 38... Re1+ {[%clk 0:00:05.4]} 39.
Rxe1 {[%clk 0:00:07.4]} 39... dxe1=Q# {[%clk 0:00:06.3]} 0-1

[Event "Early-Titled-Tuesday-Blitz-September-05-2023"]
[Site "Chess.com"]
[Date "2023.09.05"]
[Round "8"]
[White "DKmirl"]
[Black "FeketeBarika"]
[Result "0-1"]
[WhiteElo "2255"]
[BlackElo "2378"]
[TimeControl "180+1"]
[EndTime "9:26:46 PDT"]
[Termination "FeketeBarika won on time"]

1. d4 {[%clk 0:03:00.9]} 1... e6 {[%clk 0:02:54.9]} 2. Nf3 {[%clk 0:03:00.3]}
2... Nf6 {[%clk 0:02:55.1]} 3. g3 {[%clk 0:03:00.9]} 3... b6 {[%clk 0:02:52.3]}
4. Bg2 {[%clk 0:03:01.4]} 4... Bb7 {[%clk 0:02:52.9]} 5. O-O {[%clk 0:03:01.9]}
5... c5 {[%clk 0:02:53.5]} 6. c3 {[%clk 0:02:58]} 6... Be7 {[%clk 0:02:53.1]} 7.
Nbd2 {[%clk 0:02:53.1]} 7... O-O {[%clk 0:02:51.2]} 8. b3 {[%clk 0:02:53.3]}
8... d6 {[%clk 0:02:30.9]} 9. Bb2 {[%clk 0:02:52.6]} 9... Nbd7 {[%clk
0:02:28.8]} 10. Re1 {[%clk 0:02:52.6]} 10... cxd4 {[%clk 0:02:20.6]} 11. cxd4
{[%clk 0:02:51.7]} 11... d5 {[%clk 0:02:15.2]} 12. Ne5 {[%clk 0:02:48.4]} 12...
Rc8 {[%clk 0:02:10.1]} 13. Rc1 {[%clk 0:02:42.3]} 13... Bd6 {[%clk 0:01:50.1]}
14. Rxc8 {[%clk 0:02:26.2]} 14... Qxc8 {[%clk 0:01:47.7]} 15. Qb1 {[%clk
0:02:07.2]} 15... Qb8 {[%clk 0:01:11.7]} 16. Nxd7 {[%clk 0:01:54.1]} 16... Nxd7
{[%clk 0:01:09.7]} 17. e4 {[%clk 0:01:55]} 17... Bb4 {[%clk 0:01:02.2]} 18. Rd1
{[%clk 0:01:39.5]} 18... Bxd2 {[%clk 0:01:01.3]} 19. Rxd2 {[%clk 0:01:40.4]}
19... dxe4 {[%clk 0:01:01.6]} 20. Bxe4 {[%clk 0:01:40.5]} 20... Bxe4 {[%clk
0:01:02.5]} 21. Qxe4 {[%clk 0:01:40.7]} 21... Nf6 {[%clk 0:01:02.9]} 22. Qf3
{[%clk 0:01:36.3]} 22... Rc8 {[%clk 0:01:00.8]} 23. d5 {[%clk 0:00:34.4]} 23...
Nxd5 {[%clk 0:00:54.6]} 24. Qg4 {[%clk 0:00:33.1]} 24... g6 {[%clk 0:00:31.8]}
25. Rxd5 {[%clk 0:00:23.4]} 25... exd5 {[%clk 0:00:32.1]} 26. Qd4 {[%clk
0:00:22.8]} 26... Kf8 {[%clk 0:00:26.3]} 27. Qg7+ {[%clk 0:00:22.4]} 27... Ke8
{[%clk 0:00:25.5]} 28. Qg8+ {[%clk 0:00:21]} 28... Ke7 {[%clk 0:00:25.2]} 29.
Ba3+ {[%clk 0:00:20.3]} 29... Ke6 {[%clk 0:00:25.2]} 30. Qxh7 {[%clk 0:00:19]}
30... Qe5 {[%clk 0:00:25]} 31. Qh3+ {[%clk 0:00:18.5]} 31... Qf5 {[%clk
0:00:24.4]} 32. Qf1 {[%clk 0:00:17.1]} 32... Rc2 {[%clk 0:00:23.2]} 33. Qe1+
{[%clk 0:00:16]} 33... Kf6 {[%clk 0:00:20.9]} 34. Qe7+ {[%clk 0:00:12.5]} 34...
Kg7 {[%clk 0:00:17.4]} 35. Qf8+ {[%clk 0:00:12.7]} 35... Kh7 {[%clk 0:00:16.9]}
36. f4 {[%clk 0:00:03.4]} 36... Qe6 {[%clk 0:00:13.5]} 37. Qe7 {[%clk
0:00:02.4]} 37... Rc1+ {[%clk 0:00:09]} 0-1